[Event "Early-Titled-Tuesday-Blitz-February-27-2024"]
[Site "Chess.com"]
[Date "2024.02.27"]
[Round "1"]
[White "joksijoksi"]
[Black "dretch"]
[Result "0-1"]
[WhiteElo "2493"]
[BlackElo "2880"]
[TimeControl "180+1"]
[EndTime "8:08:44 PST"]
[Termination "dretch won by resignation"]

1. e4 {[%clk 0:03:00.9]} 1... e6 {[%clk 0:02:58]} 2. d4 {[%clk 0:02:59.6]} 2...
d5 {[%clk 0:02:57.7]} 3. exd5 {[%clk 0:03:00.3]} 3... exd5 {[%clk 0:02:56.9]} 4.
Bd3 {[%clk 0:02:57.9]} 4... Nc6 {[%clk 0:02:55.4]} 5. c3 {[%clk 0:02:57.6]} 5...
Bd6 {[%clk 0:02:55.8]} 6. h3 {[%clk 0:02:56.9]} 6... Nf6 {[%clk 0:02:51.9]} 7.
Nf3 {[%clk 0:02:56.8]} 7... O-O {[%clk 0:02:47.1]} 8. O-O {[%clk 0:02:55]} 8...
h6 {[%clk 0:02:44.3]} 9. Re1 {[%clk 0:02:49.5]} 9... Re8 {[%clk 0:02:41.8]} 10.
Nbd2 {[%clk 0:02:43.9]} 10... Rxe1+ {[%clk 0:02:33.8]} 11. Qxe1 {[%clk
0:02:44.8]} 11... Bd7 {[%clk 0:02:31.4]} 12. Nf1 {[%clk 0:02:42.8]} 12... Qf8
{[%clk 0:02:18.7]} 13. Be3 {[%clk 0:02:38.5]} 13... Re8 {[%clk 0:02:17.7]} 14.
Qd2 {[%clk 0:02:36.2]} 14... Ne4 {[%clk 0:02:17.7]} 15. Qc2 {[%clk 0:02:31.4]}
15... b6 {[%clk 0:01:46.8]} 16. Re1 {[%clk 0:02:30.6]} 16... Nf6 {[%clk
0:01:41.5]} 17. Bc1 {[%clk 0:02:26.8]} 17... Rxe1 {[%clk 0:01:37.3]} 18. Nxe1
{[%clk 0:02:27.7]} 18... Qe7 {[%clk 0:01:36.4]} 19. Qe2 {[%clk 0:02:18.1]} 19...
Be6 {[%clk 0:01:31.5]} 20. f4 {[%clk 0:02:10.3]} 20... Bd7 {[%clk 0:01:24.5]}
21. Ng3 {[%clk 0:02:08.3]} 21... Qxe2 {[%clk 0:01:21.5]} 22. Bxe2 {[%clk
0:02:09.2]} 22... Ne7 {[%clk 0:01:20.5]} 23. Bd3 {[%clk 0:02:05.6]} 23... c5
{[%clk 0:01:20.4]} 24. Kf2 {[%clk 0:02:00.5]} 24... h5 {[%clk 0:01:15.5]} 25.
Nf3 {[%clk 0:01:59.1]} 25... g6 {[%clk 0:01:13]} 26. Be3 {[%clk 0:01:49.4]}
26... c4 {[%clk 0:01:11.8]} 27. Bc2 {[%clk 0:01:48.7]} 27... b5 {[%clk
0:01:10.6]} 28. a3 {[%clk 0:01:48.5]} 28... a5 {[%clk 0:01:10.3]} 29. Ne5 {[%clk
0:01:47.8]} 29... h4 {[%clk 0:01:09.9]} 30. Ne2 {[%clk 0:01:43.1]} 30... Bf5
{[%clk 0:01:09.6]} 31. Bxf5 {[%clk 0:01:34.6]} 31... Nxf5 {[%clk 0:01:09.5]} 32.
Nc6 {[%clk 0:01:21.2]} 32... Bc7 {[%clk 0:01:08.3]} 33. Kf3 {[%clk 0:01:19.8]}
33... Bb6 {[%clk 0:01:00.8]} 34. g4 {[%clk 0:01:13]} 34... hxg3 {[%clk
0:01:00.4]} 35. Nxg3 {[%clk 0:01:12.4]} 35... Nh4+ {[%clk 0:00:58.6]} 36. Ke2
{[%clk 0:01:10.3]} 36... Kf8 {[%clk 0:00:58.5]} 37. Bf2 {[%clk 0:00:48.1]} 37...
Ke8 {[%clk 0:00:53.7]} 38. Ne4 {[%clk 0:00:37.2]} 38... Nxe4 {[%clk 0:00:36.5]}
39. Bxh4 {[%clk 0:00:37.7]} 39... f6 {[%clk 0:00:37.1]} 40. Nb8 {[%clk
0:00:18.3]} 40... Ke7 {[%clk 0:00:31.7]} 41. Na6 {[%clk 0:00:17.5]} 41... Kd6
{[%clk 0:00:30.3]} 42. Bf2 {[%clk 0:00:16.2]} 42... f5 {[%clk 0:00:20.7]} 43.
Be3 {[%clk 0:00:14.2]} 43... Kc6 {[%clk 0:00:19.3]} 44. Kf3 {[%clk 0:00:13.3]}
44... Kb7 {[%clk 0:00:18.6]} 45. Nc5+ {[%clk 0:00:13.8]} 45... Bxc5 {[%clk
0:00:17.6]} 46. dxc5 {[%clk 0:00:14.7]} 46... Kc6 {[%clk 0:00:18]} 47. h4 {[%clk
0:00:13]} 47... Nxc5 {[%clk 0:00:17.8]} 48. Kg3 {[%clk 0:00:13.2]} 48... Ne4+
{[%clk 0:00:17.7]} 49. Kh3 {[%clk 0:00:13.5]} 49... Nf6 {[%clk 0:00:18.3]} 50.
Bd4 {[%clk 0:00:13.2]} 50... Ne4 {[%clk 0:00:15.4]} 51. h5 {[%clk 0:00:12.9]}
51... gxh5 {[%clk 0:00:14.7]} 52. Kh4 {[%clk 0:00:13.3]} 52... Kd7 {[%clk
0:00:14.7]} 53. Kxh5 {[%clk 0:00:13.9]} 53... Ke6 {[%clk 0:00:15.3]} 54. Kg6
{[%clk 0:00:14.7]} 54... Ng3 {[%clk 0:00:13.5]} 55. Be5 {[%clk 0:00:12.8]} 55...
Ne2 {[%clk 0:00:13.5]} 56. Kg5 {[%clk 0:00:13]} 56... Nc1 {[%clk 0:00:13.5]} 57.
Bd4 {[%clk 0:00:12.3]} 57... Nd3 {[%clk 0:00:12.9]} 58. Bb6 {[%clk 0:00:12.7]}
58... a4 {[%clk 0:00:12.8]} 59. Ba5 {[%clk 0:00:13.4]} 59... Nxb2 {[%clk
0:00:13.2]} 60. Bb4 {[%clk 0:00:14.1]} 60... Nd3 {[%clk 0:00:13.6]} 61. Bf8
{[%clk 0:00:13.4]} 61... Nf2 {[%clk 0:00:13.8]} 62. Kg6 {[%clk 0:00:13]} 62...
Ne4 {[%clk 0:00:14.1]} 63. Bb4 {[%clk 0:00:12.3]} 63... Nd2 {[%clk 0:00:14.4]}
64. Bc5 {[%clk 0:00:11.5]} 64... Nf3 {[%clk 0:00:14.4]} 65. Bb4 {[%clk
0:00:09.7]} 65... Ne1 {[%clk 0:00:14.6]} 66. Kg5 {[%clk 0:00:08.9]} 66... Nc2
{[%clk 0:00:14]} 67. Bf8 {[%clk 0:00:09]} 67... Na1 {[%clk 0:00:13.9]} 68. Bb4
{[%clk 0:00:08.8]} 68... Nb3 {[%clk 0:00:14.8]} 69. Bf8 {[%clk 0:00:08.5]} 69...
d4 {[%clk 0:00:15.2]} 70. cxd4 {[%clk 0:00:08.4]} 70... Nxd4 {[%clk 0:00:16.1]}
71. Bb4 {[%clk 0:00:07.9]} 71... Nc2 {[%clk 0:00:16.5]} 72. Bf8 {[%clk
0:00:07.3]} 72... Na1 {[%clk 0:00:16.9]} 73. Bb4 {[%clk 0:00:07.2]} 73... Nb3
{[%clk 0:00:17.8]} 74. Bc3 {[%clk 0:00:07.1]} 74... Nc5 {[%clk 0:00:18]} 75. Bb4
{[%clk 0:00:07.2]} 75... Ne4+ {[%clk 0:00:18.9]} 76. Kg6 {[%clk 0:00:06.8]}
76... c3 {[%clk 0:00:19.8]} 77. Bc5 {[%clk 0:00:05.3]} 77... Nxc5 {[%clk
0:00:19.6]} 0-1

[Event "Early-Titled-Tuesday-Blitz-February-27-2024"]
[Site "Chess.com"]
[Date "2024.02.27"]
[Round "1"]
[White "MikeSailer"]
[Black "ExtremeLearner"]
[Result "1/2-1/2"]
[WhiteElo "2157"]
[BlackElo "2563"]
[TimeControl "180+1"]
[EndTime "8:08:44 PST"]
[Termination "Game drawn by repetition"]

1. d4 {[%clk 0:02:59.8]} 1... e6 {[%clk 0:03:00.9]} 2. Nf3 {[%clk 0:02:59.2]}
2... b6 {[%clk 0:02:59.3]} 3. Bf4 {[%clk 0:02:58.7]} 3... Bb7 {[%clk 0:02:57.9]}
4. e3 {[%clk 0:02:59.3]} 4... Nf6 {[%clk 0:02:54.5]} 5. Be2 {[%clk 0:02:59.7]}
5... Be7 {[%clk 0:02:49.9]} 6. h3 {[%clk 0:02:59.3]} 6... O-O {[%clk 0:02:48]}
7. O-O {[%clk 0:02:59.2]} 7... Ne4 {[%clk 0:02:38.4]} 8. a4 {[%clk 0:02:55.1]}
8... a6 {[%clk 0:02:34.3]} 9. Nbd2 {[%clk 0:02:48.5]} 9... f5 {[%clk 0:02:33.5]}
10. Nxe4 {[%clk 0:02:42.5]} 10... Bxe4 {[%clk 0:02:34.4]} 11. Nd2 {[%clk
0:02:39.5]} 11... Bb7 {[%clk 0:02:24.5]} 12. Bf3 {[%clk 0:02:39.5]} 12... Nc6
{[%clk 0:02:20.8]} 13. c4 {[%clk 0:02:36.3]} 13... d6 {[%clk 0:02:06.3]} 14. Nb1
{[%clk 0:01:57.3]} 14... Na5 {[%clk 0:01:58.1]} 15. Bxb7 {[%clk 0:01:51.4]}
15... Nxb7 {[%clk 0:01:59]} 16. b4 {[%clk 0:01:50.7]} 16... Bf6 {[%clk
0:01:50.7]} 17. Nc3 {[%clk 0:01:49.6]} 17... e5 {[%clk 0:01:41.9]} 18. Bh2
{[%clk 0:01:35.2]} 18... a5 {[%clk 0:01:23.7]} 19. b5 {[%clk 0:01:33.5]} 19...
g6 {[%clk 0:01:01.4]} 20. Nd5 {[%clk 0:01:31]} 20... Bg7 {[%clk 0:00:59]} 21.
Rc1 {[%clk 0:01:16.6]} 21... Kh8 {[%clk 0:00:56.1]} 22. f3 {[%clk 0:01:08.4]}
22... Qd7 {[%clk 0:00:55.8]} 23. Re1 {[%clk 0:01:07.9]} 23... Rae8 {[%clk
0:00:55.7]} 24. Rc2 {[%clk 0:01:04.7]} 24... Qf7 {[%clk 0:00:52.2]} 25. Rce2
{[%clk 0:01:03.3]} 25... Nd8 {[%clk 0:00:49.5]} 26. dxe5 {[%clk 0:01:00.4]}
26... dxe5 {[%clk 0:00:48.8]} 27. e4 {[%clk 0:00:59.7]} 27... f4 {[%clk
0:00:47.6]} 28. Kh1 {[%clk 0:00:58.5]} 28... Ne6 {[%clk 0:00:47.3]} 29. Bg1
{[%clk 0:00:57.7]} 29... g5 {[%clk 0:00:39]} 30. Rd2 {[%clk 0:00:57.7]} 30... h5
{[%clk 0:00:37.4]} 31. Nc3 {[%clk 0:00:54.1]} 31... Rd8 {[%clk 0:00:34.4]} 32.
Rxd8 {[%clk 0:00:51.4]} 32... Rxd8 {[%clk 0:00:35.3]} 33. Qc2 {[%clk 0:00:49.9]}
33... g4 {[%clk 0:00:32.2]} 34. Rd1 {[%clk 0:00:43.7]} 34... Rg8 {[%clk
0:00:29.3]} 35. Qd3 {[%clk 0:00:41.2]} 35... Bf6 {[%clk 0:00:20.7]} 36. Qd7
{[%clk 0:00:39.7]} 36... Qg6 {[%clk 0:00:20.3]} 37. fxg4 {[%clk 0:00:21.1]}
37... Ng5 {[%clk 0:00:14.9]} 38. Qf5 {[%clk 0:00:19.7]} 38... hxg4 {[%clk
0:00:14]} 39. Qxg6 {[%clk 0:00:19.8]} 39... Rxg6 {[%clk 0:00:14.9]} 40. hxg4
{[%clk 0:00:10.4]} 40... Ne6 {[%clk 0:00:11.8]} 41. Bf2 {[%clk 0:00:10.5]} 41...
Rxg4 {[%clk 0:00:07.9]} 42. Rd7 {[%clk 0:00:10.4]} 42... Rg7 {[%clk 0:00:07.3]}
43. Rxg7 {[%clk 0:00:09]} 43... Kxg7 {[%clk 0:00:08.2]} 44. Nd5 {[%clk
0:00:09.7]} 44... Bd8 {[%clk 0:00:07.9]} 45. g3 {[%clk 0:00:09.9]} 45... f3
{[%clk 0:00:05]} 46. Be3 {[%clk 0:00:10.4]} 46... Kf7 {[%clk 0:00:04.3]} 47. Kg1
{[%clk 0:00:11]} 47... Ke8 {[%clk 0:00:03.8]} 48. Kf2 {[%clk 0:00:11.4]} 48...
Kd7 {[%clk 0:00:04.5]} 49. Kxf3 {[%clk 0:00:11.8]} 49... Be7 {[%clk 0:00:04.9]}
50. Nxe7 {[%clk 0:00:11.1]} 50... Kxe7 {[%clk 0:00:05.8]} 51. Kg4 {[%clk
0:00:08.9]} 51... Kf6 {[%clk 0:00:06.3]} 52. Kf3 {[%clk 0:00:05.6]} 52... Nd8
{[%clk 0:00:05]} 53. g4 {[%clk 0:00:06.3]} 53... Nf7 {[%clk 0:00:05.4]} 54. Bf2
{[%clk 0:00:06.4]} 54... Nd6 {[%clk 0:00:04.9]} 55. Bh4+ {[%clk 0:00:06.4]}
55... Kg6 {[%clk 0:00:04.1]} 56. Bd8 {[%clk 0:00:05.3]} 56... Ne8 {[%clk
0:00:04.2]} 57. Kg3 {[%clk 0:00:04.7]} 57... Kf7 {[%clk 0:00:04.9]} 58. Kh4
{[%clk 0:00:04.5]} 58... Ke6 {[%clk 0:00:04.6]} 59. Kg5 {[%clk 0:00:04.1]} 59...
Kd7 {[%clk 0:00:05.3]} 60. Bf6 {[%clk 0:00:03.8]} 60... Ke6 {[%clk 0:00:05.7]}
61. Bd8 {[%clk 0:00:03.8]} 61... Kd7 {[%clk 0:00:06]} 62. Bf6 {[%clk 0:00:04.3]}
62... Ke6 {[%clk 0:00:06.6]} 63. Bd8 {[%clk 0:00:04.2]} 1/2-1/2

[Event "Early-Titled-Tuesday-Blitz-February-27-2024"]
[Site "Chess.com"]
[Date "2024.02.27"]
[Round "1"]
[White "Mackster23"]
[Black "JiiHart"]
[Result "1-0"]
[WhiteElo "2573"]
[BlackElo "2157"]
[TimeControl "180+1"]
[EndTime "8:08:48 PST"]
[Termination "Mackster23 won by checkmate"]

1. e4 {[%clk 0:03:00.9]} 1... c5 {[%clk 0:02:59.1]} 2. Nf3 {[%clk 0:03:00]} 2...
Nc6 {[%clk 0:02:59.3]} 3. d4 {[%clk 0:02:57.1]} 3... cxd4 {[%clk 0:02:58.9]} 4.
Nxd4 {[%clk 0:02:58]} 4... g6 {[%clk 0:02:59.1]} 5. c4 {[%clk 0:02:57.1]} 5...
Nf6 {[%clk 0:02:58.3]} 6. Nc3 {[%clk 0:02:53.2]} 6... Bg7 {[%clk 0:02:58.1]} 7.
Be2 {[%clk 0:02:40.9]} 7... O-O {[%clk 0:02:56.2]} 8. Be3 {[%clk 0:02:40]} 8...
d6 {[%clk 0:02:54.1]} 9. O-O {[%clk 0:02:39.2]} 9... Nxd4 {[%clk 0:02:49.8]} 10.
Bxd4 {[%clk 0:02:38.7]} 10... Bd7 {[%clk 0:02:38.3]} 11. Re1 {[%clk 0:02:36.3]}
11... a6 {[%clk 0:02:36.4]} 12. Rc1 {[%clk 0:02:31.6]} 12... Bc6 {[%clk
0:02:25.9]} 13. Bf1 {[%clk 0:02:30]} 13... e5 {[%clk 0:02:17.4]} 14. Be3 {[%clk
0:02:11]} 14... Nxe4 {[%clk 0:02:16.6]} 15. Nd5 {[%clk 0:01:31.1]} 15... Bxd5
{[%clk 0:02:13.5]} 16. Qxd5 {[%clk 0:01:30.7]} 16... Nf6 {[%clk 0:02:13.2]} 17.
Qxb7 {[%clk 0:01:30.5]} 17... d5 {[%clk 0:02:04.5]} 18. cxd5 {[%clk 0:01:28.2]}
18... Qxd5 {[%clk 0:02:03.1]} 19. Qb4 {[%clk 0:01:05.2]} 19... Rfb8 {[%clk
0:01:36.2]} 20. Qa3 {[%clk 0:01:04.8]} 20... Bf8 {[%clk 0:01:31.7]} 21. Bc5
{[%clk 0:01:01.8]} 21... Bg7 {[%clk 0:00:39.4]} 22. Bc4 {[%clk 0:00:54.4]} 22...
Qd2 {[%clk 0:00:33.7]} 23. Bb3 {[%clk 0:00:37]} 23... e4 {[%clk 0:00:29.1]} 24.
Rcd1 {[%clk 0:00:32.2]} 24... Qg5 {[%clk 0:00:25.9]} 25. Be3 {[%clk 0:00:26.2]}
25... Qh5 {[%clk 0:00:24.4]} 26. h3 {[%clk 0:00:22.6]} 26... a5 {[%clk
0:00:24.5]} 27. Qa4 {[%clk 0:00:21.3]} 27... Rb4 {[%clk 0:00:20.1]} 28. Qc6
{[%clk 0:00:21.3]} 28... Rab8 {[%clk 0:00:19.6]} 29. Qc7 {[%clk 0:00:18.1]}
29... Bf8 {[%clk 0:00:19]} 30. Qxf7+ {[%clk 0:00:17.3]} 30... Kh8 {[%clk
0:00:19.4]} 31. Qxf6+ {[%clk 0:00:17.6]} 31... Bg7 {[%clk 0:00:20]} 32. Qd6
{[%clk 0:00:17.7]} 32... a4 {[%clk 0:00:20.4]} 33. Be6 {[%clk 0:00:15.4]} 33...
Be5 {[%clk 0:00:20.4]} 34. Qd7 {[%clk 0:00:10.7]} 34... R4b7 {[%clk 0:00:19.6]}
35. Qd5 {[%clk 0:00:09.8]} 35... Rb5 {[%clk 0:00:17.8]} 36. Qc4 {[%clk
0:00:09.1]} 36... R5b7 {[%clk 0:00:16.8]} 37. Bg4 {[%clk 0:00:08.7]} 37... Qh4
{[%clk 0:00:16.1]} 38. Bd4 {[%clk 0:00:09]} 38... Qf6 {[%clk 0:00:15.5]} 39.
Bxe5 {[%clk 0:00:09.4]} 39... Qxe5 {[%clk 0:00:16.4]} 40. Qd4 {[%clk 0:00:10]}
40... Qxd4 {[%clk 0:00:16.4]} 41. Rxd4 {[%clk 0:00:10.9]} 41... Rxb2 {[%clk
0:00:16.8]} 42. Rxa4 {[%clk 0:00:11.6]} 42... Rb1 {[%clk 0:00:17.2]} 43. Rxe4
{[%clk 0:00:10.4]} 43... Rxe1+ {[%clk 0:00:16.2]} 44. Rxe1 {[%clk 0:00:11.3]}
44... Ra8 {[%clk 0:00:16.7]} 45. Be6 {[%clk 0:00:09.7]} 45... Kg7 {[%clk
0:00:17.3]} 46. Bb3 {[%clk 0:00:10.3]} 46... Kf6 {[%clk 0:00:17.8]} 47. Kf1
{[%clk 0:00:10.9]} 47... Ra7 {[%clk 0:00:18.3]} 48. Re3 {[%clk 0:00:11.5]} 48...
Ra6 {[%clk 0:00:18.9]} 49. Ke2 {[%clk 0:00:12.1]} 49... Ra5 {[%clk 0:00:19.4]}
50. g4 {[%clk 0:00:11.6]} 50... Ra7 {[%clk 0:00:18.7]} 51. Re6+ {[%clk
0:00:11.5]} 51... Kg5 {[%clk 0:00:18.1]} 52. Kf3 {[%clk 0:00:11.8]} 52... Ra3
{[%clk 0:00:16.4]} 53. Kg3 {[%clk 0:00:11.2]} 53... Kh6 {[%clk 0:00:16.7]} 54.
f4 {[%clk 0:00:11]} 54... Ra5 {[%clk 0:00:13.4]} 55. g5+ {[%clk 0:00:10.2]}
55... Rxg5+ {[%clk 0:00:12.9]} 56. fxg5+ {[%clk 0:00:09.8]} 56... Kxg5 {[%clk
0:00:13.8]} 57. h4+ {[%clk 0:00:08.9]} 57... Kf5 {[%clk 0:00:14.7]} 58. Re2
{[%clk 0:00:08.7]} 58... Kf6 {[%clk 0:00:14.4]} 59. Rf2+ {[%clk 0:00:09.1]}
59... Ke5 {[%clk 0:00:14.6]} 60. Bc2 {[%clk 0:00:09.5]} 60... Kd4 {[%clk
0:00:14.9]} 61. Bxg6 {[%clk 0:00:09.8]} 61... Ke5 {[%clk 0:00:15.3]} 62. Bxh7
{[%clk 0:00:08.7]} 62... Kd4 {[%clk 0:00:16.2]} 63. Bb1 {[%clk 0:00:08.2]} 63...
Ke5 {[%clk 0:00:17.1]} 64. h5 {[%clk 0:00:08.4]} 64... Kd4 {[%clk 0:00:18]} 65.
h6 {[%clk 0:00:09.3]} 65... Ke5 {[%clk 0:00:18.9]} 66. h7 {[%clk 0:00:10.2]}
66... Kd4 {[%clk 0:00:19.8]} 67. a4 {[%clk 0:00:10.9]} 67... Kc3 {[%clk
0:00:20.7]} 68. a5 {[%clk 0:00:11.8]} 68... Kb4 {[%clk 0:00:21.5]} 69. a6 {[%clk
0:00:12.7]} 69... Ka5 {[%clk 0:00:22.4]} 70. a7 {[%clk 0:00:13.6]} 70... Kb6
{[%clk 0:00:22.9]} 71. h8=Q {[%clk 0:00:12.8]} 71... Kc5 {[%clk 0:00:23.8]} 72.
a8=Q {[%clk 0:00:12.2]} 72... Kb4 {[%clk 0:00:24.7]} 73. Qb2+ {[%clk 0:00:11.2]}
73... Kc4 {[%clk 0:00:24.1]} 74. Qg8+ {[%clk 0:00:11.3]} 74... Kc5 {[%clk
0:00:24]} 75. Qe5+ {[%clk 0:00:10.5]} 75... Kb4 {[%clk 0:00:23.6]} 76. Qgb8+
{[%clk 0:00:10.8]} 76... Ka3 {[%clk 0:00:21.9]} 77. Qe7+ {[%clk 0:00:10.7]}
77... Ka4 {[%clk 0:00:21.6]} 78. Qd7+ {[%clk 0:00:11.2]} 78... Ka3 {[%clk
0:00:21.4]} 79. Qdd6+ {[%clk 0:00:11.7]} 79... Ka4 {[%clk 0:00:21.6]} 80. Qc6+
{[%clk 0:00:12.3]} 80... Ka3 {[%clk 0:00:21.8]} 81. Qc5+ {[%clk 0:00:13]} 81...
Ka4 {[%clk 0:00:22.2]} 82. Qcb5+ {[%clk 0:00:13.6]} 82... Ka3 {[%clk 0:00:22.5]}
83. Qb4# {[%clk 0:00:14.3]} 1-0

[Event "Early-Titled-Tuesday-Blitz-February-27-2024"]
[Site "Chess.com"]
[Date "2024.02.27"]
[Round "1"]
[White "NtcPou"]
[Black "RedFirePanda"]
[Result "0-1"]
[WhiteElo "1987"]
[BlackElo "2550"]
[TimeControl "180+1"]
[EndTime "8:08:49 PST"]
[Termination "RedFirePanda won by checkmate"]

1. e4 {[%clk 0:02:59.5]} 1... d5 {[%clk 0:02:59.9]} 2. exd5 {[%clk 0:02:58.7]}
2... Qxd5 {[%clk 0:03:00.8]} 3. Nc3 {[%clk 0:02:58.9]} 3... Qd8 {[%clk 0:03:01]}
4. d4 {[%clk 0:02:58.5]} 4... c6 {[%clk 0:02:58.2]} 5. Nf3 {[%clk 0:02:56.4]}
5... Bf5 {[%clk 0:02:57.4]} 6. Bd3 {[%clk 0:02:55]} 6... Bxd3 {[%clk 0:02:53.8]}
7. Qxd3 {[%clk 0:02:54.9]} 7... e6 {[%clk 0:02:53.5]} 8. O-O {[%clk 0:02:52.2]}
8... Nf6 {[%clk 0:02:49.4]} 9. Bg5 {[%clk 0:02:49]} 9... Be7 {[%clk 0:02:48.6]}
10. Rfe1 {[%clk 0:02:45]} 10... O-O {[%clk 0:02:47.2]} 11. Rad1 {[%clk
0:02:44.5]} 11... Nbd7 {[%clk 0:02:45.2]} 12. Ne2 {[%clk 0:02:33.2]} 12... a5
{[%clk 0:02:36.7]} 13. c3 {[%clk 0:02:31.6]} 13... a4 {[%clk 0:02:33.6]} 14. a3
{[%clk 0:02:29.5]} 14... h6 {[%clk 0:02:26.4]} 15. Bf4 {[%clk 0:02:26.2]} 15...
Nd5 {[%clk 0:02:24.6]} 16. Bg3 {[%clk 0:02:13.3]} 16... N7f6 {[%clk 0:02:12.6]}
17. Ne5 {[%clk 0:02:08.8]} 17... Nh5 {[%clk 0:02:08.6]} 18. h3 {[%clk 0:01:48]}
18... Nxg3 {[%clk 0:01:59.7]} 19. Nxg3 {[%clk 0:01:47.6]} 19... Bh4 {[%clk
0:01:41.8]} 20. Ne4 {[%clk 0:01:46.5]} 20... Be7 {[%clk 0:01:26.8]} 21. Qg3
{[%clk 0:01:40.8]} 21... Nf6 {[%clk 0:01:15]} 22. Nd2 {[%clk 0:01:28.2]} 22...
Qb6 {[%clk 0:01:07.9]} 23. Ndc4 {[%clk 0:01:25.9]} 23... Qb5 {[%clk 0:01:08.1]}
24. Rd3 {[%clk 0:01:16.5]} 24... Rad8 {[%clk 0:00:57.5]} 25. Rf3 {[%clk
0:01:15.7]} 25... Qb3 {[%clk 0:00:39]} 26. Re2 {[%clk 0:01:11.6]} 26... Qd1+
{[%clk 0:00:36.2]} 27. Kh2 {[%clk 0:01:04.4]} 27... Qxe2 {[%clk 0:00:35.7]} 28.
Ne3 {[%clk 0:00:59.8]} 28... Qxb2 {[%clk 0:00:26.8]} 29. N3c4 {[%clk 0:00:44.3]}
29... Qb5 {[%clk 0:00:20.6]} 30. h4 {[%clk 0:00:42.5]} 30... Qd5 {[%clk
0:00:17.7]} 31. Ne3 {[%clk 0:00:33.5]} 31... Qe4 {[%clk 0:00:16.9]} 32. Kg1
{[%clk 0:00:27.2]} 32... Nh5 {[%clk 0:00:12.6]} 33. Qh2 {[%clk 0:00:22.6]} 33...
Qb1+ {[%clk 0:00:07]} 34. Nf1 {[%clk 0:00:21.8]} 34... Nf6 {[%clk 0:00:02.9]}
35. Qg3 {[%clk 0:00:20.4]} 35... Ne4 {[%clk 0:00:02.9]} 36. Qf4 {[%clk
0:00:19.9]} 36... Bf6 {[%clk 0:00:02.2]} 37. h5 {[%clk 0:00:17]} 37... Bg5
{[%clk 0:00:02.3]} 38. Qg4 {[%clk 0:00:15.5]} 38... Nd2 {[%clk 0:00:02.7]} 39.
Kh2 {[%clk 0:00:12]} 39... Nxf1+ {[%clk 0:00:02.2]} 40. Kh3 {[%clk 0:00:11.6]}
40... Nd2 {[%clk 0:00:03.1]} 41. Rd3 {[%clk 0:00:10.9]} 41... Qh1+ {[%clk
0:00:03.5]} 42. Kg3 {[%clk 0:00:11]} 42... Nf1+ {[%clk 0:00:04.2]} 43. Kf3
{[%clk 0:00:10.3]} 43... Nh2+ {[%clk 0:00:04.8]} 44. Kg3 {[%clk 0:00:09.4]}
44... Nxg4 {[%clk 0:00:05.7]} 45. Nxg4 {[%clk 0:00:10]} 45... f5 {[%clk
0:00:05.8]} 46. Ne5 {[%clk 0:00:10.1]} 46... f4+ {[%clk 0:00:06.4]} 47. Kf3
{[%clk 0:00:09.8]} 47... Qxh5+ {[%clk 0:00:06.9]} 48. Ke4 {[%clk 0:00:09.4]}
48... Bf6 {[%clk 0:00:07.1]} 49. Nf3 {[%clk 0:00:09]} 49... Qd5+ {[%clk
0:00:07.3]} 50. Kxf4 {[%clk 0:00:07.6]} 50... Be5+ {[%clk 0:00:06.7]} 51. Kg4
{[%clk 0:00:08.5]} 51... Qe4+ {[%clk 0:00:07]} 52. Kh3 {[%clk 0:00:07.2]} 52...
Bf6 {[%clk 0:00:06.1]} 53. Re3 {[%clk 0:00:06.5]} 53... Qf4 {[%clk 0:00:05.9]}
54. g3 {[%clk 0:00:04.3]} 54... Qf5+ {[%clk 0:00:05.3]} 55. Kg2 {[%clk
0:00:05.2]} 55... Rfe8 {[%clk 0:00:04.5]} 56. Rd3 {[%clk 0:00:04.7]} 56... Qxd3
{[%clk 0:00:04.1]} 57. Ne1 {[%clk 0:00:04.6]} 57... Qe4+ {[%clk 0:00:03.4]} 58.
Nf3 {[%clk 0:00:05.5]} 58... e5 {[%clk 0:00:03.2]} 59. c4 {[%clk 0:00:05.8]}
59... exd4 {[%clk 0:00:03.3]} 60. c5 {[%clk 0:00:06.5]} 60... d3 {[%clk
0:00:03.7]} 61. g4 {[%clk 0:00:07.4]} 61... d2 {[%clk 0:00:04.6]} 62. Kg3 {[%clk
0:00:07.6]} 62... d1=Q {[%clk 0:00:05]} 63. Nh4 {[%clk 0:00:08.5]} 63... Qdd3+
{[%clk 0:00:04.6]} 64. Kh2 {[%clk 0:00:08.3]} 64... Qxg4 {[%clk 0:00:04.4]} 65.
Ng2 {[%clk 0:00:09]} 65... Qdh3+ {[%clk 0:00:03.7]} 66. Kg1 {[%clk 0:00:09.9]}
66... Qgxg2# {[%clk 0:00:04.6]} 0-1